Cogmind - Beta 15 @@@ ROGUE MODE // 2025.05.11 @ 18:20:45 Player: PTS Result: Destroyed by G-47 Trooper with Particle Gun Performance ------------- Evolutions (2) 1000 Regions Visited (5) 1000 Robots Destroyed (49) 245 Value Destroyed (2193) 2193 Prototype IDs (4) 80 Alien Tech Used (0) 0 Bonus (1349) 1349 TOTAL SCORE: 5867 Bonus ------- High Alert Combat Kills 44 Follower Combat Kills 105 Entered Garrisons 200 Used RIF Installer 1000 Cogmind --------- Core Integrity 0/550 Matter 297/300 Energy 225/240 System Corruption 1% Temperature Cool (97) Movement Walking (120) Location -8/Materials Parts ------- > --- POWER (1) -------- Nuclear Core > --- PROPULSION (3) --- Aluminum Leg Aluminum Leg Carbon-fiber Leg > --- UTILITY (4) ------ Medium Storage Unit Seismic Detector System Shield Makeshift System Shield > --- WEAPON (3) ------- Beam Rifle Gauss Rifle > --- INVENTORY (10) --- Light Nuclear Core Aluminum Leg Cryofiber Web Improved Heat Sink Compact Battery (200) Large Matter Pod (150) Medium Armor Plating Assault Cannon Grenade Launcher Peak State ------------ > --- POWER ------------ Nuclear Core > --- PROPULSION ------- Aluminum Leg Aluminum Leg Carbon-fiber Leg > --- UTILITY ---------- Medium Storage Unit Seismic Detector System Shield Makeshift System Shield > --- WEAPON ----------- Beam Rifle Beam Rifle Gauss Rifle > --- INVENTORY -------- Light Nuclear Core Aluminum Leg Cryofiber Web Improved Heat Sink Compact Battery Large Matter Pod Medium Armor Plating Assault Cannon Grenade Launcher [Rating: 27] Favorites ----------- Power Nuclear Core Engine Ion Engine Power Core Nuclear Core Propulsion Light Treads Treads Light Treads Leg Aluminum Leg Wheel Wheel Utility Small Storage Unit Device Seismic Detector Storage Small Storage Unit Hackware Makeshift System Shield Protection Hardened Medium Armor Plating Weapon Beam Rifle Energy Gun Beam Rifle Energy Cannon EM Pulse Cannon Ballistic Gun High-powered Shotgun Ballistic Cannon Assault Cannon Launcher Grenade Launcher Special Weapon Flamer Slashing Weapon Great Axe Build | -11 -10 -10 -8 -8 -8 ------- Run | Yrd Mat Sub Mat Gar Mat Slots Evolved 4 | . . . 4 . . Power . | . . . . . . Propulsion 1 | . . . 1 . . Utility 2 | . . . 2 . . Weapon 1 | . . . 1 . . Parts Attached 62 | 7 . 8 9 28 10 Power 7 | 1 . 1 2 3 . Engine 3 | 1 . 1 1 . . Core 4 | . . . 1 3 . Reactor . | . . . . . . Propulsion 18 | 2 . 2 1 8 5 Treads 3 | . . . . 3 . Leg 10 | . . . . 5 5 Wheel 5 | 2 . 2 1 . . Hover . | . . . . . . Flight . | . . . . . . Utility 14 | 2 . . 3 7 2 Device 6 | 1 . . 2 3 . Storage 3 | 1 . . . 1 1 Processor . | . . . . . . Hackware 2 | . . . 1 . 1 Protection 3 | . . . . 3 . Artifact . | . . . . . . Weapon 23 | 2 . 5 3 10 3 Energy Gun 9 | 1 . . 1 6 1 Energy Cannon 1 | . . . 1 . . Ballistic Gun 8 | 1 . 2 1 3 1 Ballistic Cannon 1 | . . . . . 1 Launcher 1 | . . 1 . . . Special Weapon 2 | . . 2 . . . Impact Weapon . | . . . . . . Slashing Weapon 1 | . . . . 1 . Piercing Weapon . | . . . . . . Special Melee Weapon . | . . . . . . Unidentified Prototypes . | . . . . . . Parts Lost 19 | . . 2 . 14 3 Power 3 | . . 1 . 2 . Propulsion 5 | . . . . 4 1 Utility 4 | . . . . 3 1 Weapon 7 | . . 1 . 5 1 Highest Loss Streak 5 | . . 1 . 5 2 To Critical Strikes . | . . . . . . Average Backups 6 | . 3 6 7 7 7 Power . | . 1 . . . 1 Propulsion . | . . . . . . Utility 4 | . 1 4 5 4 4 Weapon 1 | . . 1 1 1 1 Tool/Special . | . . . . . . Unused Backups 12 | . . . 1 2 9 Power 2 | . . . . . 2 Propulsion . | . . . . . . Utility 9 | . . . 1 2 6 Weapon 1 | . . . . . 1 Tool/Special . | . . . . . . Average Slot Usage (%) 91 | . 99 98 78 83 96 Engine 5 | . 14 13 7 . . Core 3 | . . . 1 5 8 Treads 7 | . . . . 14 7 Leg 5 | . . . . 6 18 Wheel 11 | . 27 28 9 . . Device 10 | . 14 14 18 8 7 Storage 10 | . 14 14 9 9 9 Hackware 6 | . . . 7 9 14 Protection 1 | . . . . 3 3 Energy Gun 14 | . 14 10 9 16 18 Ballistic Gun 8 | . 14 8 8 8 6 Launcher 2 | . . 7 . . . Peak Build Rating 27 | 7 7 11 21 26 27 Average Rating 16 | 5 6 9 17 20 23 On Entrance 11 | . 7 7 9 21 25 Naked Turns . | . . . . . . Heaviest Build 37 | 15 15 16 26 37 30 Greatest Support 60 | 20 20 40 30 60 60 Greatest Overweight (x) 7 | . 1 . 2 7 2 Average Overweight (x) . | . . . 1 . . Largest Inventory Capacity 10 | 8 8 8 8 8 10 Average Capacity 8 | 6 8 8 8 8 8 Most Carried 9 | 1 5 8 8 8 9 Average Carried 6 | . 3 6 7 7 7 Final Capacity 10 | 8 8 8 8 8 10 Final Carried 9 | 1 4 7 8 7 9 Class Distribution -------------------- 43% | Scavenger-Gunner 38% | Mutant 16% | Scavenger-Tank Dominant Class ---------------- Mutant | -10/Materials Mutant | -10/Subcaves Scavenger-Gunner | -8/Materials Scavenger-Gunner | -8/Garrison Scavenger-Gunner | -8/Materials Resources | -11 -10 -10 -8 -8 -8 ----------- Run | Yrd Mat Sub Mat Gar Mat Matter Collected 1829 | 282 . 369 75 681 422 Remotely . | . . . . . . Salvage Created 2053 | 101 . 187 75 1025 665 Parts 113 | 5 . 11 8 49 40 Haulers Intercepted . | . . . . . . Recyclers Shooed . | . . . . . . Parts Field Recycled . | . . . . . . Retrieved Matter . | . . . . . . Parts Self-Destructed 13 | . . 13 . . . Prevented . | . . . . . . Kills | -11 -10 -10 -8 -8 -8 ------- Run | Yrd Mat Sub Mat Gar Mat Combat Hostiles Destroyed 41 | . . 7 1 21 12 Guns 33 | . . 3 1 18 11 Cannons 1 | . . . . 1 . AOE 5 | . . 4 . 1 . Classes Destroyed 12 | 2 . 3 2 3 2 Worker 1 | . . . 1 . . Builder 1 | . . . . . 1 Tunneler 1 | 1 . . . . . Recycler 2 | 1 . . . . 1 Turret 1 | . . 1 . . . Watcher 2 | . . . . 1 1 Grunt 21 | . . 3 . 11 7 Duelist 1 | . . . . 1 . Sentry 12 | . . . 1 8 3 Specialist 1 | . . . . 1 . Hunter 2 | . . . . . 2 Subdweller 4 | . . 4 . . . Best Kill Streak 6 | 2 . 4 1 6 5 Combat Bots Only 6 | . . 4 1 6 2 Max Kills in Single Turn 2 | 1 . 2 1 1 1 Gunslinging . | . . . . . . Exploded 2 | . . 2 . 1 . Melee . | . . . . . . Uniques/NPCs Destroyed . | . . . . . . Combat | -11 -10 -10 -8 -8 -8 -------- Run | Yrd Mat Sub Mat Gar Mat Hostile Shots Fired 284 | . . 35 4 147 98 Missed 84 | . . 10 . 43 31 Hits 200 | . . 25 4 104 67 Melee 2 | . . . . 2 . Projectile 198 | . . 25 4 102 67 Critical Strikes 16 | . . . 1 10 5 Damage Taken 3247 | . 4 449 61 1797 936 Core 690 | . . 139 14 363 174 Absorbed by Shields . | . . . . . . Regen/Repaired (Parts) 31 | . . . . . 31 Core Remaining (%) 72 | 100 . 44 . . . Volleys Fired 165 | 4 . 41 4 65 51 Largest 3 | 2 . 2 3 3 3 Hottest 153 | 70 . 125 138 153 149 Shots Fired 350 | 8 . 63 10 172 97 Gun 300 | 8 . 42 6 152 92 Cannon 29 | . . . 4 20 5 Launcher 19 | . . 19 . . . Special 2 | . . 2 . . . Kinetic 121 | 4 . 22 4 52 39 Thermal 186 | 4 . 22 2 100 58 Explosive 19 | . . 19 . . . Electromagnetic 24 | . . . 4 20 . Robot Hit Streak 22 | 4 . 22 14 15 14 Robot Miss Streak 4 | 1 . 2 . 4 3 Penetration Max 1 | . . . . . 1 Secondary Targets 7 | . . . . 6 1 Max Gunslinging Chain 1 | . . . . 1 1 Shots Hit Robots 252 | 5 . 35 9 125 78 Core Hits 122 | 3 . 18 3 64 34 Critical Kills 1 | . . . . 1 . Critical Parts Destroyed . | . . . . . . Critical Strikes 8 | 1 . 2 . 3 2 Burn 7 | 1 . 2 . 2 2 Destroy 1 | . . . . 1 . Melee Attacks 1 | . . . . 1 . Impact . | . . . . . . Slashing 1 | . . . . 1 . Piercing . | . . . . . . Sneak Attacks . | . . . . . . Combat Hostiles . | . . . . . . Follow-up Attacks . | . . . . . . Damage Inflicted 4549 | 62 8 867 177 2091 1344 Guns 3479 | 62 . 444 65 1637 1271 Cannons 566 | . . . 112 381 73 Explosions 475 | . . 402 . 73 . Melee . | . . . . . . Ramming 8 | . 8 . . . . Kinetic 1587 | 24 . 231 40 616 676 Thermal 2059 | 38 . 234 25 1094 668 Explosive 402 | . . 402 . . . Electromagnetic 493 | . . . 112 381 . Impact . | . . . . . . Slashing . | . . . . . . Piercing . | . . . . . . Highest Corruption 1 | . . . . 1 1 Average Corruption 1 | . . . . 1 1 Corruption Purged . | . . . . . . Corruption Blocked . | . . . . . . Effects 4 | . . . . 1 3 Message Errors 1 | . . . . . 1 Heat Flow Errors 1 | . . . . . 1 Data Loss (minor) 2 | . . . . 1 1 Overload Shots . | . . . . . . Overflow Damage 28 | . . . . 28 . Projectiles 5 | . . . . 5 . Explosions 23 | . . . . 23 . Melee . | . . . . . . Knockbacks 2 | . . . . . 2 Impact . | . . . . . . Kinetic 2 | . . . . . 2 Secondary . | . . . . . . Self-Inflicted Damage 156 | . 4 31 . 121 . Shots 3 | . . 1 . 2 . Rammed 1 | . 1 . . . . Targets Rammed 1 | . 1 . . . . Kicked . | . . . . . . Crushed . | . . . . . . Highest Temperature 439 | 27 . 6 129 439 386 Average Temperature 123 | 12 . 2 45 125 141 Received Heat Transfer 1323 | . . 36 36 846 405 Effects 4 | . . . . 2 2 Shutdowns 1 | . . . . . 1 Energy Bleed 2 | . . . . 1 1 Matter Decay 1 | . . . . 1 . Siege Activations . | . . . . . . Martial Activations . | . . . . . . Shielding Activations . | . . . . . . Robots Disrupted . | . . . . . . Combat Hostiles . | . . . . . . Robots Corrupted . | . . . . . . Combat Hostiles . | . . . . . . Parts Fried . | . . . . . . Impact Corruptions . | . . . . . . Robots Melted 2 | . . . . 1 1 Combat Hostiles 2 | . . . . 1 1 Parts Melted 13 | . . 1 . 8 4 Heat Transferred 5648 | 185 . 937 74 2602 1850 Parts Sabotaged . | . . . . . . Parts Stolen . | . . . . . . Parts Stripped . | . . . . . . Power Chain Reactions 1 | . . . . 1 . Alert | -11 -10 -10 -8 -8 -8 ------- Run | Yrd Mat Sub Mat Gar Mat Maximum Alert Level 2 | . . . . 2 1 Low Security (%) 29 | 100 100 . 100 17 . Level 1 44 | . . . . 35 100 Level 2 25 | . . . . 47 . Level 3 . | . . . . . . Level 4 . | . . . . . . Level 5 . | . . . . . . High Security . | . . . . . . Max Security . | . . . . . . Peak Influence 652 | 10 . . 30 652 362 Initial 317 | . . . . . 317 Average 266 | 1 . . 3 349 310 Influence Increases 1374 | 10 . 165 35 802 362 Destroy 0b10 Robot/C 840 | . . 80 20 500 240 Destroy 0b10 Robot/NC 35 | 10 . . 5 5 15 Destroy Leader 102 | . . 10 10 10 72 Allied During Kill 11 | . . . . 11 . Successful Hack 4 | . . . . . 4 Disable Machine 15 | . . . . . 15 Anti-Garrison Action 150 | . . . . 150 . Destroy Structure 52 | . . . . 51 1 Lose Combat Pursuer 165 | . . 75 . 75 15 Influence Decreases 1047 | 10 . 165 35 150 687 Entered New Map 335 | . . . . . 335 Time Decay 492 | 10 . 145 35 . 302 Lost Part 180 | . . 20 . 130 30 Lost Ally 40 | . . . . 20 20 Squads Dispatched 3 | . . . . . 3 Investigation 1 | . . . . . 1 Extermination . | . . . . . . Reinforcement 2 | . . . . . 2 Assault . | . . . . . . Garrison . | . . . . . . Intercept . | . . . . . . Searches Triggered . | . . . . . . Construction Impeded . | . . . . . . Haulers Reinforced . | . . . . . . Active Scanning Responses . | . . . . . . Cargo Convoy Interrupts . | . . . . . . Stealth | -11 -10 -10 -8 -8 -8 --------- Run | Yrd Mat Sub Mat Gar Mat Distress Signals 4 | . . . . 2 2 Communications Jammed . | . . . . . . Distress Signals . | . . . . . . Times Spotted 61 | . . 8 2 32 19 Peak Tracking Total 9 | . . 3 1 9 5 Tactical Retreats 6 | . . 1 . 4 1 Traps | -11 -10 -10 -8 -8 -8 ------- Run | Yrd Mat Sub Mat Gar Mat Traps Triggered 4 | . 1 . . 3 . Indirectly . | . . . . . . Trap Hack Attempts . | . . . . . . Triggered . | . . . . . . Disarmed . | . . . . . . Reprogrammed . | . . . . . . Reused . | . . . . . . Traps Extracted . | . . . . . . Installed . | . . . . . . Triggered . | . . . . . . Machines | -11 -10 -10 -8 -8 -8 ---------- Run | Yrd Mat Sub Mat Gar Mat Machines Disabled 6 | . . 3 . 2 1 Max in Single Turn 2 | . . 2 . 2 1 Phase Generator 1 | . . . . 1 . Machines Repaired . | . . . . . . Machines Dismantled . | . . . . . . Machines Sabotaged . | . . . . . . Overloaded Fab Kills . | . . . . . . Hacking | -11 -10 -10 -8 -8 -8 --------- Run | Yrd Mat Sub Mat Gar Mat Machines Accessed 9 | . . 1 2 . 6 Terminals 4 | . . . 1 . 3 Fabricators . | . . . . . . Repair Stations 1 | . . . . . 1 Recycling Units . | . . . . . . Scanalyzers 2 | . . . . . 2 Garrison Access 1 | . . . 1 . . Total Hacks 39 | . . 3 4 . 32 Successful 34 | . . 3 2 . 29 Failed 5 | . . . 2 . 3 Catastrophic . | . . . . . . Database Lockouts . | . . . . . . Manual 2 | . . . 1 . 1 Terminals 11 | . . . 3 . 8 Fabricators . | . . . . . . Repair Stations 2 | . . . . . 2 Recycling Units . | . . . . . . Scanalyzers 22 | . . . . . 22 Garrison Access 1 | . . . 1 . . Terminal Hacks 11 | . . 3 1 . 7 Record 5 | . . 3 1 . 1 Prototype ID Bank 2 | . . . . . 2 Emergency Access Points 1 | . . . . . 1 Terminal Index 1 | . . . . . 1 Alert Level 1 | . . . . . 1 Maintenance Status 1 | . . . . . 1 Fabricator Hacks . | . . . . . . Repair Station Hacks 2 | . . . . . 2 Scan Component 1 | . . . . . 1 Repair 1 | . . . . . 1 Recycling Unit Hacks . | . . . . . . Scanalyzer 20 | . . . . . 20 Insert Component 8 | . . . . . 8 Analyze 12 | . . . . . 12 Garrison Access Hacks 1 | . . . 1 . . Unlock Access 1 | . . . 1 . . Unauthorized Hacks . | . . . . . . Terminals . | . . . . . . Fabricators . | . . . . . . Repair Stations . | . . . . . . Recycling Units . | . . . . . . Scanalyzers . | . . . . . . Garrison Access . | . . . . . . Data Cores Recovered . | . . . . . . Used . | . . . . . . Hacking Detections 3 | . . . 1 . 2 Full Trace Events 1 | . . . . . 1 Feedback Events . | . . . . . . Feedback Blocked . | . . . . . . Robot Schematics Acquired . | . . . . . . Robots Built . | . . . . . . Authchips . | . . . . . . Time . | . . . . . . Total Robot Build Rating . | . . . . . . Part Schematics Acquired 8 | . . . . . 8 Parts Built . | . . . . . . Authchips . | . . . . . . Time . | . . . . . . Total Part Build Rating . | . . . . . . Parts Repaired 1 | . . . . . 1 Time 38 | . . . . . 38 Parts Recycled . | . . . . . . Recycled Matter . | . . . . . . Retrieved Matter . | . . . . . . Retrieved Components . | . . . . . . Parts Scanalyzed 8 | . . . . . 8 Part Schematics Acquired 8 | . . . . . 8 Parts Damaged 1 | . . . . . 1 Bothacking | -11 -10 -10 -8 -8 -8 ------------ Run | Yrd Mat Sub Mat Gar Mat Used RIF Installer 2 | . . . . 2 . Structural Interface 1 | . . . . 1 . Robots Hacked . | . . . . . . Non-combat . | . . . . . . Combat . | . . . . . . Robot Hacks Applied . | . . . . . . Relay Couplers Released . | . . . . . . Fabnet Peak Effective % . | . . . . . . Robots Rewired 3 | . . . . 3 . Allies Hacked . | . . . . . . Hacks Repelled . | . . . . . . Allies | -11 -10 -10 -8 -8 -8 -------- Run | Yrd Mat Sub Mat Gar Mat Total Allies 3 | . . . . 3 . Largest Group 3 | . . . . 3 1 Highest-Rated Group 72 | . . . . 72 24 Highest-Rated Ally 24 | . . . . 24 24 Total Orders . | . . . . . . Ally Attacks 19 | . . . . 19 . Total Damage 426 | . . . . 426 . Kills 5 | . . . . 5 . Allies Corrupted . | . . . . . . Allies Melted . | . . . . . . Intel | -11 -10 -10 -8 -8 -8 ------- Run | Yrd Mat Sub Mat Gar Mat Active Infowar (turns) 2076 | 9 234 1018 241 150 424 Optics 57 | . . . 57 . . Seismic 2076 | 9 234 1018 241 150 424 Robot Analysis Total . | . . . . . . Derelict Logs Recovered 2 | . . 2 . . . Drone Launches . | . . . . . . Drone Recoveries . | . . . . . . Exploration | -11 -10 -10 -8 -8 -8 ------------- Run | Yrd Mat Sub Mat Gar Mat Turns Passed 3548 | 51 234 1018 241 1335 669 Spaces Moved 2075 | 36 95 857 174 612 301 Core 5 | 3 . . . 2 . Treads 479 | . . . . 412 67 Legs 401 | . . . . 167 234 Wheels 1190 | 33 95 857 174 31 . Hover . | . . . . . . Flight . | . . . . . . Fastest Speed 50 | 50 80 80 95 95 120 Average Speed 116 | 77 81 93 105 152 130 Slowest Speed 400 | 80 95 110 110 400 260 Overloaded Moves . | . . . . . . Propulsion Burnouts . | . . . . . . Robots Hopped . | . . . . . . Potential Cave-ins . | . . . . . . Cave-ins Triggered . | . . . . . . Exploration Rate (%) 27 | 3 12 48 17 60 23 Regions Visited 5 Branch Regions 1 Pre-discovered Areas 1 | . . 1 . . . Known Exits Taken 1 | . . . 1 . . Unknown Exits Taken 3 | 1 1 1 . . . Scrap Searched 4 | . . 4 . . . Spaces Dug . | . . . . . . Terrain Destroyed 164 | . . 108 . 56 . Melee . | . . . . . . Projectile . | . . . . . . AOE 164 | . . 108 . 56 . Terrain Rammed . | . . . . . . Walls Destroyed . | . . . . . . Machines Disabled . | . . . . . . Actions | -11 -10 -10 -8 -8 -8 --------- Run | Yrd Mat Sub Mat Gar Mat Total 2899 | 47 251 1008 222 875 496 Wait 432 | . 151 79 20 76 106 Move 2070 | 35 94 856 173 611 301 Hop . | . . . . . . Pick Up 59 | 1 4 9 7 25 13 Fast Attach 21 | 7 . . 1 10 3 Attach 29 | . 1 5 4 15 4 Detach 3 | . . 2 1 . . Swap 31 | . . 10 7 9 5 Drop 46 | . . 6 5 22 13 Fire 165 | 4 . 41 4 65 51 Melee 1 | . . . . 1 . Ram 1 | . 1 . . . . Kick . | . . . . . . Crush . | . . . . . . Escape Stasis 10 | . . . . 10 . Rewire 31 | . . . . 31 . Trap . | . . . . . . Miscellaneous . | . . . . . . Route ------- -11/Scrapyard -10/Materials -10/Subcaves (discovered 3 exits: *Mat x2 / [*Rec]) -8/Materials (discovered 2 exits: Fac / Gar) -8/Garrison -8/Materials History --------- Turn | Location | Event 4 | -11/Scrapyard | Discovered new exit (range 16) 52 | -11/Scrapyard | Entered Materials 211 | -10/Materials | Discovered new exit (range 8) 286 | -10/Materials | Entered Subcaves 292 | -10/Subcaves | Learned location of Zion (-7) 298 | -10/Subcaves | Learned location of 1 exit from Materials 302 | -10/Subcaves | Discovered new exit (range 8) 316 | -10/Subcaves | Build established: Mutant 514 | -10/Subcaves | Discovered new exit (range 11) 685 | -10/Subcaves | A swath of the cavern ceiling suddenly collapsed 891 | -10/Subcaves | Ambushed by Subdwellers from Twisted Machinery 952 | -10/Subcaves | Core integrity fell below 50% 1199 | -10/Subcaves | Discovered new exit (range 10) 1243 | -10/Subcaves | Visited Clippyterm 1245 | -10/Subcaves | Learned 40 Factory zone layouts 1304 | -10/Subcaves | Entered Materials 1304 | -8/Materials | Evolved 4 slots: Propulsion x1, Utility x2, Weapon x1 1305 | -8/Materials | Identified exit to Factory 1507 | -8/Materials | Identified exit to Garrison 1545 | -8/Materials | Entered Garrison 1645 | -8/Garrison | Lost 3 parts (2n1w) 1779 | -8/Garrison | Triggered checkpoint 1839 | -8/Garrison | Triggered checkpoint 1916 | -8/Garrison | Lost 5 parts (1p2n2w) 2024 | -8/Garrison | Core integrity fell below 50% 2078 | -8/Garrison | Lost 3 parts (1u2w) 2107 | -8/Garrison | Build established: Scavenger-Gunner 2166 | -8/Garrison | Phase Generator disabled 2271 | -8/Garrison | Installed Relay Interface Framework 2525 | -8/Garrison | Triggered checkpoint 2529 | -8/Garrison | Triggered checkpoint 2685 | -8/Garrison | Triggered checkpoint 2742 | -8/Garrison | Discovered new exit (range 12) 2754 | -8/Garrison | Expanded RIF knowledge: Structural Interface 2843 | -8/Garrison | Build established: Scavenger-Tank 2880 | -8/Garrison | Entered Materials 2880 | -8/Materials | Accompanied by 1 ally 3025 | -8/Materials | Core integrity fell below 20% 3333 | -8/Materials | Repaired Nuclear Core 3424 | -8/Materials | Build established: Scavenger-Gunner 3549 | -8/Materials | Destroyed by G-47 Trooper with Particle Gun Last Messages --------------- 03520_ Slug penetrates Wall. 03522_ Slug penetrates G-50 Soldier. 03524_ G-50 Soldier destroyed. 03527_ K-01 Serf collects debris. 03529_ W-25 Informer suffers critical hit (Burn). 03529_ W-25 Informer destroyed. 03529_ Slug penetrates Wall. 03531_ K-01 Serf collects debris. 03532_ Acquired 32 matter. 03539_ Slug penetrates Wall. 03548_ Penetrated by Slug. 03548_ H-55 Commando suffers critical hit (Burn). 03548_ H-55 Commando destroyed. 03548_ Switching to secondary target: G-47 Trooper. 03548_ Slug penetrates G-47 Trooper. 03549_ Penetrated by Slug. 03549_ Beam Rifle destroyed. Map ----- +----------------------------------------------------+ | | | | | ????????????????????????????????????????????? | | ???????????????????????????????######??###### | | ???????????########???????????##!!!!##?# # | | ???????????# ! #???????????#! !#?# " !# | | ???????????# #????######## #?# T # | | ???????????#!! #????# ## ### " # | | ##########?#!! #????# + # | | # T #?#!! #????# #### [# | | # #?# #????# #??#! # | | # !!! ######+######## #??# # | | # !!! + ####### #??# [[# | | # !! ###### ######## ####?????# #?####+## | | # ! #????# #??????# #????????# #?#! # | | # ] ! #????# #??#####+##?????### ### # | | # #????# #??# T #?????# # """ # | | # ! #????# #??# ####### # """ # | | ###+######????# #??#! """ # =[ / """ # | | ######?# #??# """ # ##### # # | | #?# #??# """%+ #???# #! # | | %%#### #?# #??# # #???## ######## | | #####/####????# #??########g###??# # # | | # #????# #####???#! #??# # # | | # """"## ### #*!*#####[* #??# # """ # | | # """""## =!%h*!%!@= #??# # """ # | | # """""########%!%#####*% #??# + """ # | | # """""#????####+###??# #??# # """ # | | # """""#????# % #??## ##??### # # | | # """""#????#" % #???# #?????# # # | | # "%"""#????# "" #???# #?????# # ! # | | # %== #????# "" #???# #?????#+# # | | ##########????# #???# #???????# " " =# | | #?????????????#! #???#k #???????# "R" # | | #?????????????########???# #???????# """ # | | #???????????????????????? ???????######## | | ????????????????????????? ??????????????? | | ????????????????????????? ?????????????? | | ????????????????????????? T ?????????????? | | ????????????????????????? #????????????? | | ????????????????????????? #????????????? | | ????????????????????????? #????????????? | | ????????????????????????? ?? #?????????????? | | ????????????????????????? ?????????????????? | | ????????????????????????????????????????????? | | ????????????????????????????????????????????? | | ????????????????????????????????????????????? | | ????????????????????????????????????????????? | | ????????????????????????????????????????????? | | ????????????????????????????????????????????? | +----------------------------------------------------+ Best States ------------- Heat Dissipation 45 Coolant Potential 50 Energy Generation 14 Energy Capacity 265 Matter Stores 300 Matter Capacity 300 Sight Range 21 Terrain Scan Density 10 Armor Coverage 450 Evasion (%) 55 Recoil Reduction 4 Defensive Hacking 21 Item Schematics ----------------- Beam Rifle | -8/Materials | Scanalyzed Cryofiber Web | -8/Materials | Scanalyzed Med. Armor Plating | -8/Materials | Scanalyzed Com. Battery | -8/Materials | Scanalyzed Grenade Launcher | -8/Materials | Scanalyzed Lrg. Matter Pod | -8/Materials | Scanalyzed Lgt. Nuclear Core | -8/Materials | Scanalyzed Imp. Heat Sink | -8/Materials | Scanalyzed Robot Schematics ------------------ None Fabricated ------------ Nothing Repaired ---------- Nuclear Core | 58% | -8/Materials Alien Tech Used ----------------- None Achievements -------------- A New Friend Challenges ------------ None Game ------ Seed BlastHardlightPit Manual? 0 Play Time 00:47:37 Cumulative 22.9 hours Start 2025.05.11 @ 17:26:49 End 2025.05.11 @ 18:20:45 Sessions 1 Manual Loads 0 Difficulty Rogue Special Mode None Game No. 39 Rogue 39 Adventurer 0 Explorer 0 Win Type - Total 0 Types 0/0/0/0/0/0/0/0/0/0 Lore% 12 Gallery% 24 Achievement% 24 Wizard Run 0 Options --------- Layout 1 ASCII 0 Keyboard 0 Movement Mouse Keybinds 0 Fullscreen 1 Font 24/Smallcaps Map View 50x35 Zoom Use 0% Tactical HUD 1 Map Filters NONE Filters NONE Steam 1 RUN: 3d36f292-a0e1-41c9-8f10-1b4f255b31d9